bitfinex/quotes_BTCUSD_20230109
["timestamp","ask_amount","ask_price","bid_price","bid_amount"]
[1673242321845,2.94704065,17255.0,17254.0,0.00373806]
[1673242322129,3.08204065,17255.0,17254.0,0.00373806]
[1673242322896,2.94704065,17255.0,17254.0,0.00373806]
[1673242323167,3.08204065,17255.0,17254.0,0.00373806]
[1673242324170,3.34916404,17255.0,17254.0,0.00373806]
[1673242324688,3.48416404,17255.0,17254.0,0.00373806]
[1673242325204,3.34916404,17255.0,17254.0,0.00373806]
[1673242325455,3.51736404,17255.0,17254.0,0.00373806]
[1673242325960,3.65236404,17255.0,17254.0,0.00373806]
[1673242328732,3.25024065,17255.0,17254.0,0.00373806]
[1673242334194,2.72901036,17255.0,17254.0,0.00373806]
[1673242337321,2.72901036,17255.0,17254.0,0.00362988]
[1673242343290,3.25062632,17255.0,17254.0,0.00362988]
[1673242343559,2.72901036,17255.0,17254.0,0.00362988]
[1673242344335,3.16884961,17255.0,17254.0,0.00362988]
[1673242344589,3.75530007,17255.0,17254.0,0.00362988]
[1673242344842,3.94145038,17255.0,17254.0,0.00362988]
[1673242345097,3.94145038,17255.0,17254.0,0.00012988]
[1673242345345,4.36860897,17255.0,17254.0,0.00012988]
[1673242345641,3.94151992,17255.0,17254.0,0.00012988]
[1673242345899,3.80655803,17255.0,17254.0,0.00012988]
[1673242346421,3.22003992,17255.0,17254.0,0.00012988]
[1673242346930,3.35603992,17255.0,17254.0,0.00012988]
[1673242347689,3.94249946,17255.0,17254.0,0.00012988]
[1673242348196,3.35603992,17255.0,17254.0,0.00012988]
[1673242348966,3.22003992,17255.0,17254.0,0.00012988]
[1673242349216,3.94248592,17255.0,17254.0,0.00012988]
[1673242350481,3.80648592,17255.0,17254.0,0.00012988]
[1673242350974,3.94248592,17255.0,17254.0,0.00012988]
[1673242351219,3.80648592,17255.0,17254.0,0.00012988]
[1673242351475,3.22003992,17255.0,17254.0,0.00012988]
[1673242351985,3.8061192,17255.0,17254.0,0.00012988]
[1673242352230,3.8061292,17255.0,17254.0,0.00012988]
[1673242353003,3.9421292,17255.0,17254.0,0.00012988]
[1673242354560,11.4421292,17255.0,17254.0,0.00012988]
[1673242355268,11.1522892,17255.0,17254.0,0.00012988]
[1673242355518,11.4421292,17255.0,17254.0,0.06343267]
[1673242355760,11.3061292,17255.0,17254.0,0.06343267]
[1673242356007,11.36414867,17255.0,17254.0,0.06343267]
[1673242356251,11.50014867,17255.0,17254.0,0.06343267]
[1673242356495,11.36414867,17255.0,17254.0,0.06343267]
[1673242356742,11.50014867,17255.0,17254.0,0.06343267]
[1673242357531,11.36414867,17255.0,17254.0,0.06343267]
[1673242357787,11.50014867,17255.0,17254.0,0.06343267]
[1673242360548,10.77806939,17255.0,17254.0,0.06343267]
[1673242361064,10.91406939,17255.0,17254.0,0.06343267]
[1673242362598,11.92693224,17255.0,17254.0,0.06343267]
[1673242362849,11.5003004,17255.0,17254.0,0.06343267]
[1673242364144,11.5002904,17255.0,17254.0,0.06343267]
[1673242364885,10.91405939,17255.0,17254.0,0.06343267]
[1673242365451,11.50041894,17255.0,17254.0,0.06343267]
[1673242365948,11.33221894,17255.0,17254.0,0.06343267]
[1673242366737,11.19621894,17255.0,17254.0,0.06343267]
[1673242366990,11.33221894,17255.0,17254.0,0.06343267]
[1673242367242,11.19621894,17255.0,17254.0,0.06343267]
[1673242367483,11.33221894,17255.0,17254.0,0.06343267]
[1673242368291,11.33221894,17255.0,17254.0,0.06336524]
[1673242370310,11.19621894,17255.0,17254.0,0.06336524]
[1673242370556,11.33221894,17255.0,17254.0,0.06336524]
[1673242370799,10.89237969,17255.0,17254.0,0.06336524]
[1673242371069,11.31911917,17255.0,17254.0,0.06336524]
[1673242371308,11.78538651,17255.0,17254.0,0.06336524]
[1673242372067,11.64938651,17255.0,17254.0,0.06336524]
[1673242372320,11.78538651,17255.0,17254.0,0.06336524]
[1673242372859,12.37926364,17255.0,17254.0,0.06336524]
[1673242373329,12.54666364,17255.0,17254.0,0.06336524]
[1673242373837,12.60720745,17255.0,17254.0,0.06336524]
[1673242374099,12.47120745,17255.0,17254.0,0.06336524]
[1673242374350,12.60720745,17255.0,17254.0,6.245e-05]
[1673242374602,12.60707081,17255.0,17254.0,6.245e-05]
[1673242376777,12.52078414,17255.0,17254.0,4.5e-07]
[1673242377029,0.4,17254.0,17253.0,0.00454808]
[1673242377289,3.25439447,17254.0,17253.0,0.00454808]
[1673242377535,4.32551297,17254.0,17253.0,0.00454808]
[1673242377811,11.82551297,17254.0,17253.0,0.00454808]
[1673242379309,11.96151297,17254.0,17253.0,0.00454808]
[1673242379586,12.60294731,17254.0,17253.0,0.00454808]
[1673242380085,12.46694731,17254.0,17253.0,0.00454808]
[1673242380589,12.60294731,17254.0,17253.0,0.00454808]
[1673242381359,12.00907018,17254.0,17253.0,0.00454808]
[1673242383146,11.44695698,17254.0,17253.0,0.00454808]
[1673242383390,11.58295698,17254.0,17253.0,0.00454808]
[1673242383647,12.00916284,17254.0,17253.0,0.00454808]
[1673242384630,4.50916284,17254.0,17253.0,0.00454808]
[1673242385361,4.34226284,17254.0,17253.0,0.00454808]
[1673242385613,5.22878652,17254.0,17253.0,0.00454808]
[1673242386120,5.09278652,17254.0,17253.0,0.00454808]
[1673242386873,5.22878652,17254.0,17253.0,0.00454808]
[1673242387880,5.09278652,17254.0,17253.0,0.00454808]
[1673242388137,5.22878652,17254.0,17253.0,0.00454808]
[1673242388391,5.09278652,17254.0,17253.0,0.00454808]
[1673242388653,12.67076705,17254.0,17253.0,0.00454808]
[1673242389140,12.80676705,17254.0,17253.0,0.00454808]
[1673242390106,12.86478652,17254.0,17253.0,0.00454808]
[1673242390594,12.88271652,17254.0,17253.0,0.00454808]
[1673242391108,12.74671652,17254.0,17253.0,0.00454808]
[1673242391603,12.61071652,17254.0,17253.0,0.00454808]
[1673242391847,12.74671652,17254.0,17253.0,0.00454808]
[1673242392873,1.08353731,17253.0,17251.0,0.00915908]
[1673242393137,2.205826,17252.0,17251.0,0.00915908]
[1673242393392,3.05903523,17252.0,17251.0,0.00915908]
[1673242394395,3.05903523,17252.0,17251.0,0.07256858]
[1673242394665,3.19503523,17252.0,17251.0,0.07256858]
[1673242395160,3.78213586,17252.0,17251.0,0.07256858]
[1673242397212,3.49227586,17252.0,17251.0,0.07256858]
[1673242397456,3.19504523,17252.0,17251.0,0.07256858]
[1673242397708,3.78214586,17252.0,17251.0,0.07256858]
[1673242397935,3.19504523,17252.0,17251.0,0.07256858]
[1673242400003,3.78214586,17252.0,17251.0,0.07256858]
[1673242400252,3.19504523,17252.0,17251.0,0.07256858]
[1673242401800,3.05904523,17252.0,17251.0,0.07256858]
[1673242402048,3.19404523,17252.0,17251.0,0.07256858]
[1673242405820,3.61215982,17252.0,17251.0,0.07256858]
[1673242406320,3.19404523,17252.0,17251.0,0.07256858]
[1673242407073,3.78114586,17252.0,17251.0,0.07256858]
[1673242408347,3.64614586,17252.0,17251.0,0.07256858]
[1673242408610,3.78214586,17252.0,17251.0,0.07256858]
[1673242409355,3.64614586,17252.0,17251.0,0.07256858]
[1673242409629,4.51702779,17252.0,17251.0,0.00915908]
[1673242410669,3.64614586,17252.0,17251.0,0.00915908]
[1673242411120,3.78214586,17252.0,17251.0,0.00915908]
[1673242412624,3.64614586,17252.0,17251.0,0.00915908]
[1673242413631,4.2484132,17252.0,17251.0,0.00915908]
[1673242413878,3.64614586,17252.0,17251.0,0.00915908]
[1673242414137,3.78214586,17252.0,17251.0,0.00915908]
[1673242414392,4.36619281,17252.0,17251.0,0.00915908]
[1673242415175,3.19504523,17252.0,17251.0,0.00915908]
[1673242415431,3.78214586,17252.0,17251.0,0.00915908]
[1673242416168,3.78213586,17252.0,17251.0,0.00915908]
[1673242416678,3.64613586,17252.0,17251.0,0.0090433]
[1673242416936,3.78113586,17252.0,17251.0,0.0090433]
[1673242417195,3.64613586,17252.0,17251.0,0.0090433]
[1673242417470,3.78213586,17252.0,17251.0,0.0090433]
[1673242420180,4.17722717,17252.0,17251.0,0.0090433]
[1673242420657,4.17722717,17252.0,17251.0,0.0065413]
[1673242420893,3.78213586,17252.0,17251.0,0.0065413]
[1673242422877,3.49227586,17252.0,17251.0,0.0065413]
[1673242423133,3.78214586,17252.0,17251.0,0.0065413]
[1673242424401,4.2484132,17252.0,17251.0,0.0065413]
[1673242424652,4.84229033,17252.0,17251.0,0.0065413]
[1673242425463,4.67539033,17252.0,17251.0,0.0065413]
[1673242426221,5.10058895,17252.0,17251.0,0.0065413]
[1673242426474,5.68769162,17252.0,17251.0,0.0065413]
[1673242426722,5.68770411,17252.0,17251.0,0.0065413]
[1673242426979,5.10058895,17252.0,17251.0,0.0065413]
[1673242427220,5.6877062,17252.0,17251.0,0.0065413]
[1673242427469,5.68774376,17252.0,17251.0,0.0065413]
[1673242427727,4.67540695,17252.0,17251.0,0.0065413]
[1673242428229,4.20913961,17252.0,17251.0,0.0065413]
[1673242428481,4.67540695,17252.0,17251.0,0.0065413]
[1673242430755,5.68766806,17252.0,17251.0,0.0065413]
[1673242431005,4.67537282,17252.0,17251.0,0.0065413]
[1673242434578,5.10042264,17252.0,17251.0,0.0065413]
[1673242434829,12.46442264,17252.0,17251.0,0.0065413]
[1673242435570,11.57296083,17252.0,17251.0,0.0065413]
[1673242435845,4.07296083,17252.0,17251.0,0.0065413]
[1673242436081,5.08509547,17252.0,17251.0,0.0065413]
[1673242436326,4.20896083,17252.0,17251.0,0.0065413]
[1673242436827,4.67522817,17252.0,17251.0,0.0065413]
[1673242437076,5.10042522,17252.0,17251.0,0.0065413]
[1673242437559,4.6751961,17252.0,17251.0,0.0065413]
[1673242437786,5.10036123,17252.0,17251.0,0.0065413]
[1673242439491,5.10038123,17252.0,17251.0,0.0065413]
[1673242440050,4.96438123,17252.0,17251.0,0.0065413]
[1673242440804,5.10038123,17252.0,17251.0,0.0065413]
[1673242441322,12.60038123,17252.0,17251.0,0.0065413]
[1673242441796,12.46438123,17252.0,17251.0,0.0065413]
[1673242442062,12.60038123,17252.0,17251.0,0.00642723]
[1673242442833,12.1754515,17252.0,17251.0,0.00642723]
[1673242443097,12.60094562,17252.0,17251.0,0.00642723]
[1673242443344,12.60095757,17252.0,17251.0,0.00642723]
[1673242443617,5.10095757,17252.0,17251.0,0.00642723]
[1673242444866,4.67524371,17252.0,17251.0,0.00642723]
[1673242445382,5.01164371,17252.0,17251.0,0.00642723]
[1673242446051,5.01163371,17252.0,17251.0,0.00642723]
[1673242447087,3.95148924,17252.0,17251.0,0.00642723]
[1673242447849,3.81548924,17252.0,17251.0,0.00642723]
[1673242448106,3.95148924,17252.0,17251.0,0.00642723]
[1673242452412,4.41775658,17252.0,17251.0,0.00642723]
[1673242453405,3.95148924,17252.0,17251.0,0.00642723]
[1673242453895,4.41775658,17252.0,17251.0,0.00642723]
[1673242455296,4.24955658,17252.0,17251.0,0.00642723]
[1673242457347,3.78328924,17252.0,17251.0,0.00642723]
[1673242458135,2.174926,17252.0,17251.0,0.00642723]
[1673242458396,1.874926,17252.0,17251.0,0.00642723]
[1673242458933,2.39665753,17252.0,17251.0,0.00642723]
[1673242459218,1.874926,17252.0,17251.0,0.00642723]
[1673242459747,2.174926,17252.0,17251.0,0.00642723]
[1673242460294,2.60949576,17252.0,17251.0,0.00642723]
[1673242461082,2.30949576,17252.0,17251.0,0.00642723]
[1673242461317,2.60949576,17252.0,17251.0,0.00642723]
[1673242461818,2.30949576,17252.0,17251.0,0.00642723]
[1673242463093,1.295284,17252.0,17251.0,0.00642723]
[1673242463858,1.295284,17252.0,17251.0,0.61684754]
[1673242464137,0.715642,17252.0,17251.0,1.24921511]
[1673242464384,0.715642,17252.0,17251.0,1.61284411]
[1673242464914,0.136,17252.0,17251.0,1.61284411]
[1673242465222,0.579612,17253.0,17251.0,1.61284411]
[1673242465436,0.579612,17253.0,17251.0,1.24921511]
[1673242465437,1.159222,17253.0,17251.0,1.24921511]
[1673242465699,1.159222,17253.0,17252.0,0.1682]
[1673242465954,1.459222,17253.0,17252.0,0.1682]
[1673242466215,1.159222,17253.0,17252.0,0.5682]
[1673242467454,1.295222,17253.0,17252.0,0.5682]
[1673242467987,1.295222,17253.0,17252.0,0.5712]
[1673242467988,1.431222,17253.0,17252.0,0.5712]
[1673242468459,1.4311179,17253.0,17252.0,0.5712]
[1673242468464,0.272,17253.0,17252.0,1.71500023]
[1673242468711,0.272,17253.0,17252.0,1.94866189]
[1673242469232,0.579569,17255.0,17252.0,1.94566189]
[1673242469484,0.135,17253.0,17252.0,1.24973289]
[1673242469737,0.135,17253.0,17252.0,2.41602923]
[1673242470501,1.159116,17255.0,17252.0,2.41202923]
[1673242470767,0.063,17253.0,17252.0,1.71500023]
[1673242471015,0.063,17253.0,17252.0,1.58503289]
[1673242471536,0.879584,17254.0,17252.0,1.64912858]
[1673242471792,0.879584,17254.0,17253.0,0.3364]
[1673242472063,0.879584,17254.0,17253.0,0.1682]
[1673242472874,1.459159,17254.0,17252.0,1.24573289]
[1673242473181,1.459159,17254.0,17252.0,0.1682]
[1673242473182,2.20148082,17254.0,17252.0,0.1682]
[1673242473450,2.20148082,17254.0,17252.0,0.003]
[1673242473451,0.88365225,17253.0,17252.0,0.003]
[1673242473715,2.34287025,17253.0,17252.0,0.003]
[1673242474769,2.34284025,17253.0,17251.0,0.00632624]
[1673242475017,0.3,17252.0,17251.0,0.00632624]
[1673242475274,1.459284,17252.0,17251.0,0.00632624]
[1673242476358,1.159284,17252.0,17251.0,0.00632624]
[1673242476617,1.293284,17252.0,17251.0,0.00932624]
[1673242479243,1.593284,17252.0,17251.0,0.00932624]
[1673242480318,2.15373338,17252.0,17251.0,0.00932624]
[1673242480809,2.21175285,17252.0,17251.0,0.00932624]
[1673242480810,2.8840005,17252.0,17251.0,0.00932624]
[1673242481064,3.39325438,17252.0,17251.0,0.00932624]
[1673242481337,3.22505438,17252.0,17251.0,0.00932624]
[1673242481854,3.16703491,17252.0,17251.0,0.00932624]
[1673242488730,2.73337538,17252.0,17251.0,0.00932624]
[1673242488998,3.03326087,17252.0,17251.0,0.00632624]
[1673242489224,3.45711087,17252.0,17251.0,0.00832624]
[1673242489987,3.02322538,17252.0,17251.0,0.00832624]
[1673242492001,3.45713111,17252.0,17251.0,0.00832624]
[1673242492270,3.02322538,17252.0,17251.0,0.00832624]
[1673242493051,3.02322538,17252.0,17251.0,0.00822112]
[1673242501311,3.16745682,17252.0,17251.0,0.0083372]
[1673242501828,2.15373338,17252.0,17251.0,0.0083372]
[1673242502329,2.15373338,17252.0,17251.0,0.00822112]
[1673242502594,2.15373338,17252.0,17251.0,0.0083372]
[1673242502843,2.15373338,17252.0,17251.0,0.00822112]
[1673242503325,2.15373338,17252.0,17251.0,0.0083372]
[1673242503587,2.15373338,17252.0,17251.0,0.00822112]
[1673242504149,1.75320538,17252.0,17251.0,0.00822112]
[1673242504603,1.75320538,17252.0,17251.0,0.0083372]
[1673242505579,1.75320538,17252.0,17251.0,0.00822112]
[1673242508844,0.892756,17252.0,17251.0,0.00822112]
[1673242509113,0.892756,17252.0,17251.0,0.00844224]
[1673242509858,0.892756,17252.0,17251.0,0.00822112]
[1673242510625,1.192756,17252.0,17251.0,0.00822112]
[1673242510973,0.892756,17252.0,17251.0,0.00822112]
[1673242511147,1.32683744,17252.0,17251.0,0.00822112]
[1673242511403,1.62683744,17252.0,17251.0,0.00822112]
[1673242515471,1.192756,17252.0,17251.0,0.00822112]
[1673242523127,1.1926399,17252.0,17251.0,0.00822112]
[1673242523659,1.71437143,17252.0,17251.0,0.07535302]
[1673242523912,1.1926399,17252.0,17251.0,0.07535302]
[1673242528209,1.1926399,17252.0,17251.0,0.07546439]
[1673242528460,1.1926399,17252.0,17251.0,0.07535302]
[1673242529481,1.1926399,17252.0,17251.0,0.07546439]
[1673242529708,1.1926399,17252.0,17251.0,0.07535302]
[1673242532967,1.71437143,17252.0,17251.0,0.07535302]
[1673242533224,1.1926399,17252.0,17251.0,0.07535302]
[1673242533499,1.71437143,17252.0,17251.0,0.07535302]
[1673242534305,1.1926399,17252.0,17251.0,0.07535302]
[1673242535808,1.71437143,17252.0,17251.0,0.07535302]
[1673242537090,1.1926399,17252.0,17251.0,0.07535302]
[1673242538375,1.71437143,17252.0,17251.0,0.07535302]
[1673242540847,1.71437143,17252.0,17251.0,0.07546439]
[1673242541103,1.1926399,17252.0,17251.0,0.07546439]
[1673242541633,1.1926399,17252.0,17251.0,0.07535302]
[1673242542397,1.1926399,17252.0,17251.0,0.07546439]
[1673242542835,1.1926399,17252.0,17251.0,0.07535302]
[1673242544886,1.1926399,17252.0,17251.0,0.07546439]
[1673242545122,1.71437143,17252.0,17251.0,0.07535302]
[1673242545360,1.91437143,17252.0,17251.0,0.07525982]
[1673242545790,1.71437143,17252.0,17251.0,0.07525982]
[1673242546270,1.1926399,17252.0,17251.0,0.07525982]
[1673242547037,1.71437143,17252.0,17251.0,0.07525982]
[1673242549043,1.91437143,17252.0,17251.0,0.07525982]
[1673242549286,0.95573153,17252.0,17251.0,0.07525982]
[1673242549537,2.11501553,17252.0,17251.0,0.07525982]
[1673242551430,2.11491712,17252.0,17251.0,0.07478206]
[1673242553119,2.11491712,17252.0,17251.0,0.05478206]
[1673242556841,2.18101553,17252.0,17251.0,0.05478206]
[1673242557171,2.31601553,17252.0,17251.0,0.05478206]
[1673242557679,2.11601553,17252.0,17251.0,0.05478206]
[1673242557927,1.98101553,17252.0,17251.0,0.05478206]
[1673242558152,2.11601553,17252.0,17251.0,0.05478206]
[1673242558433,1.98101553,17252.0,17251.0,0.05489343]
[1673242558675,1.98101553,17252.0,17251.0,0.05478206]
[1673242558920,2.11601553,17252.0,17251.0,0.05478206]
[1673242559699,1.459284,17252.0,17251.0,0.05489343]
[1673242559959,1.594284,17252.0,17251.0,0.05478206]
[1673242560204,2.11601553,17252.0,17251.0,0.05478206]
[1673242562968,2.11601553,17252.0,17251.0,0.05499769]
[1673242563241,2.11601553,17252.0,17251.0,0.05478206]
[1673242565469,1.594284,17252.0,17251.0,0.05478206]
[1673242565988,2.11601553,17252.0,17251.0,0.05478206]
[1673242566739,2.11601553,17252.0,17251.0,0.05499769]
[1673242566985,2.11601553,17252.0,17251.0,0.05478206]
[1673242568747,2.11601553,17252.0,17251.0,0.05499769]
[1673242568993,2.11601553,17252.0,17251.0,0.05478206]
[1673242572268,1.594284,17252.0,17251.0,0.05478206]
[1673242573317,1.59418238,17252.0,17251.0,0.05478206]
[1673242573562,1.59418238,17252.0,17251.0,0.05499769]
[1673242573831,1.59418238,17252.0,17251.0,0.05478206]
[1673242574367,1.59418238,17252.0,17251.0,0.05499769]
[1673242574831,1.59418238,17252.0,17251.0,0.05478206]
[1673242575838,1.59418238,17252.0,17251.0,0.05499769]
[1673242576601,2.02909454,17252.0,17251.0,0.03557855]
[1673242576841,1.294284,17252.0,17251.0,0.03536292]
[1673242577335,1.594284,17252.0,17251.0,0.03536292]
[1673242579316,2.76358671,17252.0,17251.0,0.03536292]
[1673242579566,2.57695518,17252.0,17251.0,0.03536292]
[1673242580855,2.951305,17252.0,17251.0,0.03536292]
[1673242581345,2.57695518,17252.0,17251.0,0.03536292]
[1673242581825,2.44195518,17252.0,17251.0,0.03536292]
[1673242583377,2.57795518,17252.0,17251.0,0.03536292]
[1673242583598,2.44195518,17252.0,17251.0,0.03536292]
[1673242583863,2.57795518,17252.0,17251.0,0.03536292]
[1673242584363,3.26436172,17252.0,17251.0,0.03536292]
[1673242584873,3.09954983,17252.0,17251.0,0.03536292]
[1673242585360,3.09946077,17252.0,17251.0,0.03536292]
[1673242585635,3.09943925,17252.0,17251.0,0.03536292]
[1673242586854,2.57795518,17252.0,17251.0,0.03536292]
[1673242587369,3.09939349,17252.0,17251.0,0.03536292]
[1673242590142,2.96339349,17252.0,17251.0,0.03536292]
[1673242590390,3.09839349,17252.0,17251.0,0.03536292]
[1673242591678,2.96339349,17252.0,17251.0,0.03536292]
[1673242591898,3.09939349,17252.0,17251.0,0.03536292]
[1673242592546,3.46320457,17252.0,17251.0,0.03536292]
[1673242592796,3.09939349,17252.0,17251.0,0.03536292]
[1673242593789,3.09939349,17252.0,17251.0,0.03524545]
[1673242594288,2.79939349,17252.0,17251.0,0.03524545]
[1673242595299,2.63249349,17252.0,17251.0,0.03524545]
[1673242595516,2.93249349,17252.0,17251.0,0.03524545]
[1673242596261,3.22234349,17252.0,17251.0,0.03524545]
[1673242599000,3.60253874,17252.0,17251.0,0.03524545]
[1673242600445,3.22234349,17252.0,17251.0,0.03524545]
[1673242604931,2.41105518,17252.0,17251.0,0.03535708]
[1673242605151,2.41105518,17252.0,17251.0,0.03524545]
[1673242607194,2.93249349,17252.0,17251.0,0.03524545]
[1673242613995,2.93259052,17252.0,17251.0,0.03524545]
[1673242614215,2.93259232,17252.0,17251.0,0.03524545]
[1673242614696,3.04871665,17252.0,17251.0,0.03524545]
[1673242615443,2.88051665,17252.0,17251.0,0.03524545]
[1673242615656,3.91795863,17252.0,17251.0,0.03524545]
[1673242615900,3.85993916,17252.0,17251.0,0.03524545]
[1673242616252,3.72393916,17252.0,17251.0,0.03524545]
[1673242616495,4.14979916,17252.0,17250.0,0.00524168]
[1673242616708,1.22155908,17251.0,17250.0,0.00524168]
[1673242616920,2.38091108,17251.0,17250.0,0.00524168]
[1673242617562,2.38091108,17251.0,17250.0,0.04063824]
[1673242617860,2.67077108,17251.0,17250.0,0.04063824]
[1673242618009,2.80677108,17251.0,17250.0,0.04063824]
[1673242618227,2.67077108,17251.0,17250.0,0.04063824]
[1673242618467,2.67077108,17251.0,17250.0,0.00524168]
[1673242618697,2.80677108,17251.0,17250.0,0.00524168]
[1673242619381,2.51691108,17251.0,17250.0,0.00524168]
[1673242619550,2.80677108,17251.0,17250.0,0.03867177]
[1673242620228,2.27077108,17251.0,17250.0,0.03867177]
[1673242621233,2.40677108,17251.0,17250.0,0.03867177]
[1673242622251,1.94323147,17251.0,17250.0,0.03867177]
[1673242622779,2.32882397,17251.0,17250.0,0.03867177]
[1673242623266,2.46482397,17251.0,17250.0,0.03867177]
[1673242623506,2.46482397,17251.0,17250.0,0.00524168]
[1673242624253,2.32882397,17251.0,17250.0,0.00524168]
[1673242624500,2.46482397,17251.0,17250.0,0.00524168]
[1673242626216,2.32882397,17251.0,17250.0,0.00024168]
[1673242627765,2.46482397,17251.0,17250.0,0.00024168]
[1673242628979,3.07476635,17251.0,17250.0,0.00024168]
[1673242630968,3.07476635,17251.0,17250.0,0.00035331]
[1673242631210,3.07476635,17251.0,17250.0,0.00024168]
[1673242631967,3.07475635,17251.0,17250.0,0.00024168]
[1673242637762,2.55316385,17251.0,17250.0,0.00024168]
[1673242638009,2.41716385,17251.0,17250.0,0.00024168]
[1673242638247,2.55316385,17251.0,17250.0,0.00024168]
[1673242638754,2.55318385,17251.0,17250.0,0.00024168]
[1673242639231,2.41718385,17251.0,17250.0,0.00024168]
[1673242639448,2.55318385,17251.0,17250.0,0.00024168]
[1673242641733,2.55317385,17251.0,17250.0,0.00024168]
[1673242643632,2.26331385,17251.0,17250.0,0.00024168]
[1673242644151,2.55318385,17251.0,17250.0,0.00024168]
[1673242645893,2.49516438,17251.0,17250.0,0.00024168]
[1673242646906,2.35916438,17251.0,17250.0,0.00024168]
[1673242647130,2.49516438,17251.0,17250.0,0.00024168]
[1673242648679,3.10493994,17251.0,17250.0,0.00024168]
[1673242649994,3.68461594,17251.0,17250.0,0.00024168]
[1673242650491,3.54861594,17251.0,17250.0,0.00024168]
[1673242650777,3.68461594,17251.0,17250.0,0.00024168]
[1673242651008,3.54861594,17251.0,17250.0,0.00024168]
[1673242651232,3.68461594,17251.0,17250.0,0.00024168]
[1673242651727,3.74263541,17251.0,17250.0,0.00024168]
[1673242651976,4.19080696,17251.0,17250.0,0.00024168]
[1673242652484,4.19083696,17251.0,17250.0,0.00024168]
[1673242653021,1.295352,17251.0,17250.0,0.63440443]
[1673242653297,0.715676,17251.0,17250.0,0.63440443]
[1673242653565,0.136,17251.0,17250.0,0.63440443]
[1673242654066,0.715676,17251.0,17250.0,0.63440443]
[1673242654322,0.579676,17251.0,17250.0,0.63440443]
[1673242654816,0.879676,17251.0,17250.0,0.6678337]
[1673242655061,0.716676,17251.0,17250.0,1.0314627]
[1673242655310,1.016676,17251.0,17250.0,0.6678337]
[1673242655563,1.152676,17251.0,17250.0,0.6688337]
[1673242655808,0.852676,17251.0,17250.0,0.6688337]
[1673242656591,0.852676,17251.0,17250.0,1.03278569]
[1673242657079,0.852676,17251.0,17250.0,0.66915669]
[1673242657566,0.852676,17251.0,17250.0,0.63572742]
[1673242658610,0.852676,17251.0,17250.0,0.99935642]
[1673242659804,1.432352,17251.0,17250.0,0.00124168]
[1673242660299,1.732352,17251.0,17250.0,0.00124168]
[1673242660551,1.732352,17251.0,17250.0,0.03654915]
[1673242661578,1.732352,17251.0,17250.0,0.00115345]
[1673242661826,1.932352,17251.0,17250.0,0.00115345]
[1673242667721,1.432352,17251.0,17250.0,0.00328581]
[1673242667932,1.832352,17251.0,17250.0,0.00115345]
[1673242669656,1.832352,17251.0,17250.0,0.00328581]
[1673242669885,1.832352,17251.0,17250.0,0.00115345]
[1673242670827,1.432352,17251.0,17250.0,0.00328581]
[1673242671111,1.432352,17251.0,17250.0,0.00115345]
[1673242671366,1.832352,17251.0,17250.0,0.00115345]
[1673242671616,1.432352,17251.0,17250.0,0.03654668]
[1673242672575,1.832352,17251.0,17250.0,0.00115345]
[1673242675139,1.432352,17251.0,17250.0,0.00115345]
[1673242675403,1.832352,17251.0,17250.0,0.00115345]
[1673242679292,2.132352,17251.0,17250.0,0.00115345]
[1673242682005,2.132352,17251.0,17250.0,0.00103433]
[1673242683006,3.04737898,17251.0,17250.0,0.00103433]
[1673242683255,3.91027312,17251.0,17250.0,0.00103433]
[1673242683567,3.43261581,17251.0,17250.0,0.00103433]
[1673242684260,4.01229181,17251.0,17250.0,0.00103433]
[1673242684985,3.87529181,17251.0,17250.0,0.00103433]
[1673242685231,3.73929181,17251.0,17250.0,3.433e-05]
[1673242685668,4.33316894,17251.0,17250.0,3.433e-05]
[1673242685926,3.73929181,17251.0,17250.0,3.433e-05]
[1673242686175,3.79731128,17251.0,17250.0,3.433e-05]
[1673242686420,3.79724636,17251.0,17250.0,3.433e-05]
[1673242686678,3.93324636,17251.0,17250.0,0.03541928]
[1673242687731,3.93324636,17251.0,17250.0,3.433e-05]
[1673242688699,3.93324636,17251.0,17250.0,0.03345345]
[1673242689605,3.93324636,17251.0,17250.0,3.433e-05]
[1673242690587,3.93324636,17251.0,17250.0,0.03345345]
[1673242691616,3.93324636,17251.0,17250.0,3.433e-05]
[1673242692107,4.25663735,17251.0,17250.0,3.433e-05]
[1673242692611,4.25663735,17251.0,17250.0,0.03541928]
[1673242693805,4.25663735,17251.0,17250.0,3.433e-05]
[1673242694015,11.75663735,17251.0,17250.0,3.433e-05]
[1673242694713,11.75663735,17251.0,17250.0,0.03541645]
[1673242694960,12.0293565,17251.0,17250.0,0.03541645]
[1673242695206,12.3192665,17251.0,17250.0,0.03541645]
[1673242695693,12.3192665,17251.0,17250.0,3.433e-05]
[1673242696401,12.90509871,17251.0,17250.0,3.433e-05]
[1673242696651,12.90509871,17251.0,17250.0,0.03541645]
[1673242697689,12.90509871,17251.0,17250.0,3.433e-05]
[1673242698697,12.90509871,17251.0,17250.0,0.03541645]
[1673242699212,12.05646892,17251.0,17250.0,0.03541645]
[1673242699455,11.78374977,17251.0,17250.0,0.03541645]
[1673242699725,11.78374977,17251.0,17250.0,3.433e-05]
[1673242700241,4.28374977,17251.0,17250.0,3.433e-05]
[1673242700494,4.80432268,17251.0,17250.0,3.433e-05]
[1673242700711,4.28374977,17251.0,17250.0,3.433e-05]
[1673242701002,4.80431966,17251.0,17250.0,3.433e-05]
[1673242701246,4.28374977,17251.0,17250.0,3.433e-05]
[1673242701747,4.74375148,17251.0,17250.0,0.03541645]
[1673242701989,4.22315636,17251.0,17250.0,0.03541645]
[1673242702232,4.7437484,17251.0,17250.0,0.03541645]
[1673242702481,4.22315636,17251.0,17250.0,0.03541645]
[1673242702699,4.22315636,17251.0,17250.0,3.433e-05]
[1673242704693,4.34842091,17251.0,17250.0,3.433e-05]
[1673242704937,4.22315636,17251.0,17250.0,3.433e-05]
[1673242705432,4.38995636,17251.0,17250.0,3.433e-05]
[1673242708486,4.38994636,17251.0,17250.0,3.433e-05]
[1673242709732,0.44421328,17250.0,17249.0,0.00942286]
[1673242709986,3.71341493,17250.0,17249.0,0.00942286]
[1673242710509,4.00331493,17250.0,17249.0,0.00942286]
[1673242711005,4.13931493,17250.0,17249.0,0.00942286]
[1673242711373,0.4,17249.0,17246.0,1.51689092]
[1673242711610,1.459554,17248.0,17246.0,0.38742946]
[1673242711865,1.69723189,17248.0,17246.0,0.38742946]
[1673242712103,1.459554,17248.0,17246.0,0.38742946]
[1673242713589,1.594554,17248.0,17246.0,0.38742946]
[1673242713840,0.43408704,17247.0,17246.0,0.38742946]
[1673242714087,1.15962,17247.0,17246.0,0.38742946]
[1673242714329,1.89370704,17247.0,17246.0,0.38742946]
[1673242714571,1.45962,17247.0,17246.0,0.38742946]
[1673242714812,1.89370704,17247.0,17246.0,0.38742946]
[1673242715061,1.89370704,17247.0,17246.0,0.38755573]
[1673242715570,1.89370704,17247.0,17246.0,0.38742946]
[1673242716068,2.18361704,17247.0,17246.0,0.38742946]
[1673242716318,2.31861704,17247.0,17246.0,0.38742946]
[1673242716584,2.18361704,17247.0,17246.0,0.38742946]
[1673242717058,2.18345853,17247.0,17246.0,0.38742946]